[Event "Blixt-SM 2025"]
[Site "Norrköping, Sweden"]
[Date "2025.09.26"]
[Round "7.5"]
[White "Tadjerbashi, Amir"]
[Black "Muntean, Victor"]
[Result "1/2-1/2"]
[TimeControl "3 min + 2 sec/move"]
[WhiteElo "2235"]
[BlackElo "2151"]

1. e4 {[%clk 00:03:03]} e5 {[%clk 00:03:03]} {[%emt 00:00:02]} 2. Nf3 {[%clk
00:03:04]} Nc6 {[%clk 00:03:04]} 3. d4 {[%clk 00:03:05]} {[%emt 00:00:01]} exd4
{[%clk 00:03:05]} 4. Bc4 {[%clk 00:03:06]} Nf6 {[%clk 00:03:06]} 5. e5 {[%clk
00:03:07]} {[%emt 00:00:01]} d5 {[%clk 00:03:07]} 6. Bb5 {[%clk 00:03:09]} Ne4
{[%clk 00:03:09]} 7. Nxd4 {[%clk 00:03:09]} Bc5 {[%clk 00:03:10]} 8. Be3 {[%clk
00:03:10]} {[%emt 00:00:01]} O-O {[%clk 00:03:10]} {[%emt 00:00:02]} 9. Nxc6
{[%clk 00:03:10]} {[%emt 00:00:02]} bxc6 {[%clk 00:03:10]} {[%emt 00:00:01]} 10.
Bxc5 {[%clk 00:03:11]} {[%emt 00:00:02]} Nxc5 {[%clk 00:03:10]} {[%emt
00:00:02]} 11. Bxc6 {[%clk 00:03:11]} Rb8 {[%clk 00:03:11]} {[%emt 00:00:02]}
12. O-O {[%clk 00:02:42]} {[%emt 00:00:32]} Qe7 {[%clk 00:02:43]} {[%emt
00:00:30]} 13. Nc3 {[%clk 00:02:05]} {[%emt 00:00:38]} Rd8 {[%clk 00:02:00]}
{[%emt 00:00:46]} 14. Nxd5 {[%clk 00:01:56]} {[%emt 00:00:11]} Qxe5 {[%clk
00:02:00]} {[%emt 00:00:02]} 15. Re1 {[%clk 00:01:55]} {[%emt 00:00:03]} Qd6
{[%clk 00:01:30]} {[%emt 00:00:33]} 16. Ne7+ {[%clk 00:01:45]} {[%emt
00:00:12]} Kh8 {[%clk 00:01:21]} {[%emt 00:00:10]} 17. Qxd6 {[%clk 00:01:34]}
{[%emt 00:00:12]} Rxd6 {[%clk 00:01:13]} {[%emt 00:00:11]} 18. Nxc8 {[%clk
00:01:09]} {[%emt 00:00:28]} Rxc8 {[%clk 00:01:13]} 19. Bf3 {[%clk 00:01:04]}
{[%emt 00:00:06]} g6 {[%clk 00:01:00]} {[%emt 00:00:16]} 20. Rad1 {[%clk
00:01:04]} {[%emt 00:00:02]} Rcd8 {[%clk 00:01:01]} {[%emt 00:00:02]} 21. Rxd6
{[%clk 00:01:00]} {[%emt 00:00:05]} Rxd6 {[%clk 00:00:57]} {[%emt 00:00:06]} 22.
Re5 {[%clk 00:00:28]} {[%emt 00:00:34]} Ne6 {[%clk 00:00:54]} {[%emt 00:00:05]}
23. g3 {[%clk 00:00:19]} {[%emt 00:00:11]} Rd2 {[%clk 00:00:55]} 24. Be4 {[%clk
00:00:12]} {[%emt 00:00:09]} Re2 {[%clk 00:00:48]} {[%emt 00:00:09]} 25. Kf1
{[%clk 00:00:14]} Rd2 {[%clk 00:00:48]} {[%emt 00:00:01]} 26. Ke1 {[%clk
00:00:13]} {[%emt 00:00:03]} Rd7 {[%clk 00:00:47]} {[%emt 00:00:04]} 27. c3
{[%clk 00:00:05]} {[%emt 00:00:09]} c5 {[%clk 00:00:47]} {[%emt 00:00:02]} 28.
Bc2 {[%clk 00:00:06]} Kg7 {[%clk 00:00:46]} {[%emt 00:00:03]} 29. f4 {[%clk
00:00:08]} Rb7 {[%clk 00:00:40]} {[%emt 00:00:08]} 30. Bb3 {[%clk 00:00:09]} c4
{[%clk 00:00:27]} {[%emt 00:00:14]} 31. Bxc4 {[%clk 00:00:11]} Rxb2 {[%clk
00:00:29]} 32. Bxe6 {[%clk 00:00:11]} {[%emt 00:00:01]} fxe6 {[%clk 00:00:30]}
33. Ra5 {[%clk 00:00:10]} {[%emt 00:00:04]} Rxh2 {[%clk 00:00:24]} {[%emt
00:00:07]} 34. Rxa7+ {[%clk 00:00:11]} Kf6 {[%clk 00:00:25]} 35. c4 {[%clk
00:00:11]} {[%emt 00:00:02]} Rc2 {[%clk 00:00:25]} {[%emt 00:00:02]} 36. Rxh7
{[%clk 00:00:11]} {[%emt 00:00:02]} Rxc4 {[%clk 00:00:25]} {[%emt 00:00:03]} 37.
Ra7 {[%clk 00:00:12]} Kf5 {[%clk 00:00:24]} {[%emt 00:00:03]} 38. Kf2 {[%clk
00:00:13]} Kg4 {[%clk 00:00:24]} {[%emt 00:00:01]} 39. Ra6 {[%clk 00:00:12]}
{[%emt 00:00:04]} Rc2+ {[%clk 00:00:25]} 40. Ke3 {[%clk 00:00:13]} Rc1 {[%clk
00:00:12]} {[%emt 00:00:15]} 41. Ke2 {[%clk 00:00:13]} {[%emt 00:00:01]} Kf5
{[%clk 00:00:10]} {[%emt 00:00:05]} 42. a4 {[%clk 00:00:13]} {[%emt 00:00:02]}
Ra1 {[%clk 00:00:10]} {[%emt 00:00:02]} 43. Kf3 {[%clk 00:00:14]} Ra3+ {[%clk
00:00:11]} {[%emt 00:00:01]} 44. Kg2 {[%clk 00:00:15]} Kg4 {[%clk 00:00:12]}
{[%emt 00:00:02]} 45. Rxe6 Rxg3+ {[%clk 00:00:12]} 46. Kh2 {[%clk 00:00:14]}
{[%emt 00:00:02]} Rh3+ {[%clk 00:00:12]} {[%emt 00:00:02]} 47. Kg2 {[%clk
00:00:15]} Rg3+ {[%clk 00:00:13]} 48. Kh2 {[%clk 00:00:15]} {[%emt 00:00:02]}
Rh3+ {[%clk 00:00:14]} 49. Kg2 {[%clk 00:00:15]} {[%emt 00:00:02]} Rg3+ {[%clk
00:00:15]} 50. Kh2 {[%clk 00:00:14]} {[%emt 00:00:02]} 1/2-1/2

[ePGN "0.1;DGT LiveChess/2.2.7"]

[Event "Blixt-SM 2025"]
[Site "Norrköping, Sweden"]
[Date "2025.09.26"]
[Round "9.1"]
[White "Carlsson, Ludvig"]
[Black "Seo, Jung Min"]
[Result "0-1"]
[TimeControl "3 min + 2 sec/move"]
[WhiteTitle "IM"]
[BlackTitle "IM"]
[WhiteElo "2389"]
[BlackElo "2480"]

1. e4 {[%clk 00:03:03]} {[%emt 00:08:22]} c5 {[%clk 00:03:03]} 2. Nf3 {[%emt
00:00:02]} d6 3. d4 {[%clk 00:03:05]} cxd4 {[%clk 00:03:06]} 4. Nxd4 {[%clk
00:03:07]} Nf6 {[%clk 00:03:07]} {[%emt 00:00:01]} 5. Nc3 a6 6. Bg5 {[%clk
00:03:08]} e6 {[%clk 00:03:09]} {[%emt 00:00:02]} 7. Qf3 {[%clk 00:03:09]} Nbd7
{[%clk 00:03:08]} {[%emt 00:00:03]} 8. O-O-O {[%clk 00:03:09]} {[%emt
00:00:02]} Qc7 {[%clk 00:03:07]} {[%emt 00:00:04]} 9. Bd3 {[%clk 00:03:09]}
{[%emt 00:00:02]} Be7 {[%clk 00:03:04]} {[%emt 00:00:05]} 10. Qg3 {[%clk
00:03:04]} {[%emt 00:00:07]} b5 {[%clk 00:02:49]} {[%emt 00:00:17]} 11. Rhe1
{[%clk 00:03:04]} {[%emt 00:00:01]} Bb7 {[%clk 00:02:44]} {[%emt 00:00:07]} 12.
a3 {[%clk 00:02:55]} {[%emt 00:00:11]} O-O {[%clk 00:01:57]} {[%emt 00:00:49]}
13. f4 {[%clk 00:02:56]} {[%emt 00:00:01]} Nc5 {[%clk 00:01:40]} {[%emt
00:00:19]} 14. e5 {[%clk 00:02:10]} {[%emt 00:00:47]} dxe5 {[%clk 00:01:18]}
{[%emt 00:00:25]} 15. fxe5 {[%clk 00:02:11]} {[%emt 00:00:01]} Nd5 {[%clk
00:01:05]} {[%emt 00:00:15]} 16. Bxh7+ {[%clk 00:02:11]} {[%emt 00:00:02]} Kxh7
{[%clk 00:01:05]} {[%emt 00:00:01]} 17. Nxd5 {[%clk 00:02:04]} {[%emt
00:00:09]} Bxg5+ {[%clk 00:01:06]} {[%emt 00:00:01]} 18. Qxg5 {[%clk 00:02:04]}
Bxd5 {[%clk 00:01:04]} {[%emt 00:00:04]} 19. Re3 {[%clk 00:02:01]} {[%emt
00:00:05]} f6 {[%clk 00:00:53]} {[%emt 00:00:14]} 20. Qh5+ {[%clk 00:01:45]}
{[%emt 00:00:17]} Kg8 {[%clk 00:00:55]} 21. Nf5 {[%clk 00:01:46]} {[%emt
00:00:02]} exf5 {[%clk 00:00:39]} {[%emt 00:00:18]} 22. Rxd5 {[%clk 00:01:46]}
{[%emt 00:00:02]} Rac8 {[%clk 00:00:20]} {[%emt 00:00:20]} 23. Rc3 {[%clk
00:01:35]} {[%emt 00:00:13]} Qe7 {[%clk 00:00:22]} {[%emt 00:00:01]} 24. Rh3
{[%clk 00:01:31]} {[%emt 00:00:06]} Qe6 {[%clk 00:00:12]} {[%emt 00:00:12]} 25.
Qh7+ {[%clk 00:01:08]} {[%emt 00:00:24]} Kf7 {[%clk 00:00:14]} 26. Qh5+ {[%clk
00:01:09]} {[%emt 00:00:02]} Ke7 {[%clk 00:00:11]} {[%emt 00:00:05]} 27. exf6+
{[%clk 00:01:07]} {[%emt 00:00:04]} Rxf6 {[%clk 00:00:12]} 28. Qd1 {[%clk
00:01:04]} {[%emt 00:00:04]} Ne4 {[%clk 00:00:10]} {[%emt 00:00:04]} 29. Rhd3
{[%clk 00:01:03]} {[%emt 00:00:03]} Qc6 {[%clk 00:00:08]} {[%emt 00:00:04]} 30.
Rd7+ {[%clk 00:01:04]} {[%emt 00:00:02]} Kf8 {[%clk 00:00:09]} 31. c3 {[%clk
00:01:01]} {[%emt 00:00:04]} Nf2 {[%clk 00:00:06]} {[%emt 00:00:06]} 32. Rd8+
{[%clk 00:01:02]} Rxd8 {[%clk 00:00:07]} 33. Rxd8+ {[%clk 00:01:03]} Ke7 {[%clk
00:00:08]} {[%emt 00:00:01]} 34. Qd2 {[%clk 00:01:03]} {[%emt 00:00:02]} Ne4
{[%clk 00:00:09]} {[%emt 00:00:01]} 35. Qd4 {[%clk 00:00:58]} {[%emt 00:00:07]}
Rd6 {[%clk 00:00:05]} {[%emt 00:00:05]} 36. Rxd6 {[%clk 00:00:57]} {[%emt
00:00:03]} Qxd6 {[%clk 00:00:06]} 37. Qxg7+ {[%clk 00:00:58]} {[%emt 00:00:01]}
Ke6 {[%clk 00:00:08]} 38. Qg6+ {[%clk 00:00:57]} {[%emt 00:00:03]} Nf6 {[%clk
00:00:09]} 39. h4 {[%clk 00:00:56]} {[%emt 00:00:03]} Qf4+ {[%clk 00:00:10]}
{[%emt 00:00:02]} 40. Kc2 {[%clk 00:00:57]} Qxh4 {[%clk 00:00:10]} {[%emt
00:00:02]} 41. Qg7 {[%clk 00:00:55]} {[%emt 00:00:03]} Qg4 {[%clk 00:00:09]}
{[%emt 00:00:02]} 42. Qb7 {[%clk 00:00:56]} {[%emt 00:00:02]} Qe4+ {[%clk
00:00:10]} {[%emt 00:00:02]} 0-1

[Event "Blixt-SM 2025"]
[Site "Norrköping, Sweden"]
[Date "2025.09.26"]
[Round "10.7"]
[White "Lindh, Fredrik"]
[Black "Persson, Richard"]
[Result "1-0"]
[TimeControl "3 min + 2 sec/move"]
[WhiteTitle "FM"]
[BlackTitle "CM"]
[WhiteElo "2249"]
[BlackElo "2106"]

1. e4 {[%clk 00:03:02]} {[%emt 00:00:02]} c6 {[%clk 00:03:01]} {[%emt
00:00:05]} 2. d4 {[%clk 00:03:02]} d5 {[%clk 00:03:01]} {[%emt 00:00:01]} 3. e5
{[%clk 00:03:03]} {[%emt 00:00:01]} Bf5 {[%clk 00:03:02]} {[%emt 00:00:02]} 4.
Nd2 {[%clk 00:03:04]} {[%emt 00:00:01]} e6 {[%clk 00:02:54]} {[%emt 00:00:10]}
5. Nb3 {[%clk 00:03:05]} {[%emt 00:00:01]} Nd7 {[%clk 00:02:48]} {[%emt
00:00:09]} 6. Nf3 {[%clk 00:03:05]} h6 {[%clk 00:02:48]} {[%emt 00:00:02]} 7.
Be2 {[%clk 00:03:06]} Ne7 {[%clk 00:02:45]} {[%emt 00:00:05]} 8. O-O {[%clk
00:03:06]} {[%emt 00:00:02]} Bh7 {[%clk 00:02:46]} {[%emt 00:00:02]} 9. Bd2
{[%clk 00:03:07]} {[%emt 00:00:02]} Ng6 {[%clk 00:02:45]} {[%emt 00:00:02]} 10.
c4 {[%clk 00:03:08]} {[%emt 00:00:02]} dxc4 {[%clk 00:02:43]} {[%emt 00:00:04]}
11. Na5 {[%clk 00:03:09]} Qc7 {[%clk 00:02:15]} {[%emt 00:00:29]} 12. Nxc4
{[%clk 00:02:50]} {[%emt 00:00:20]} Be7 {[%clk 00:02:07]} {[%emt 00:00:11]} 13.
h4 {[%clk 00:02:41]} {[%emt 00:00:11]} O-O {[%clk 00:01:59]} {[%emt 00:00:09]}
14. h5 {[%clk 00:02:41]} {[%emt 00:00:02]} Nh4 {[%clk 00:01:59]} {[%emt
00:00:01]} 15. Nxh4 {[%clk 00:02:27]} {[%emt 00:00:17]} Bxh4 {[%clk 00:02:00]}
{[%emt 00:00:02]} 16. Bb4 {[%clk 00:02:13]} {[%emt 00:00:16]} Rfe8 {[%clk
00:01:50]} {[%emt 00:00:12]} 17. Bd6 {[%clk 00:02:09]} {[%emt 00:00:06]} Qd8
{[%clk 00:01:45]} {[%emt 00:00:07]} 18. Qb3 {[%clk 00:02:00]} {[%emt 00:00:11]}
Nb6 {[%clk 00:01:35]} {[%emt 00:00:12]} 19. a4 {[%clk 00:01:47]} {[%emt
00:00:15]} Be7 {[%clk 00:01:32]} {[%emt 00:00:04]} 20. Bxe7 {[%clk 00:01:22]}
{[%emt 00:00:28]} Rxe7 {[%clk 00:01:33]} {[%emt 00:00:02]} 21. Rfd1 {[%clk
00:01:14]} {[%emt 00:00:09]} Be4 {[%clk 00:01:21]} {[%emt 00:00:14]} 22. Nd6
{[%clk 00:01:10]} {[%emt 00:00:06]} Bd5 {[%clk 00:01:20]} {[%emt 00:00:03]} 23.
Qe3 {[%clk 00:01:05]} {[%emt 00:00:04]} Nc8 {[%clk 00:01:19]} {[%emt 00:00:06]}
24. Ne4 {[%clk 00:00:50]} {[%emt 00:00:17]} Nb6 {[%clk 00:01:13]} {[%emt
00:00:08]} 25. Bd3 {[%clk 00:00:47]} {[%emt 00:00:06]} Rd7 {[%clk 00:00:40]}
{[%emt 00:00:34]} 26. a5 {[%clk 00:00:37]} {[%emt 00:00:13]} Nc8 {[%clk
00:00:33]} {[%emt 00:00:09]} 27. Bc2 {[%clk 00:00:32]} {[%emt 00:00:07]} Qh4
{[%clk 00:00:25]} {[%emt 00:00:09]} 28. Nc5 {[%clk 00:00:26]} {[%emt 00:00:08]}
Re7 {[%clk 00:00:17]} {[%emt 00:00:10]} 29. Qd3 {[%clk 00:00:21]} {[%emt
00:00:07]} g6 {[%clk 00:00:12]} {[%emt 00:00:07]} 30. hxg6 {[%clk 00:00:19]}
{[%emt 00:00:04]} fxg6 {[%clk 00:00:13]} 31. Qxg6+ {[%clk 00:00:18]} {[%emt
00:00:03]} Kh8 {[%clk 00:00:07]} {[%emt 00:00:08]} 32. Rd3 {[%clk 00:00:07]}
{[%emt 00:00:13]} Qg5 {[%clk 00:00:04]} {[%emt 00:00:05]} 33. Qxg5 {[%clk
00:00:05]} {[%emt 00:00:04]} hxg5 {[%clk 00:00:05]} {[%emt 00:00:01]} 34. Rh3+
{[%clk 00:00:06]} Kg8 {[%clk 00:00:06]} 35. Rg3 {[%clk 00:00:07]} Rg7 {[%clk
00:00:07]} {[%emt 00:00:01]} 36. Re1 {[%clk 00:00:06]} {[%emt 00:00:02]} b6
{[%clk 00:00:08]} {[%emt 00:00:02]} 37. Ne4 {[%clk 00:00:05]} {[%emt 00:00:02]}
Ne7 {[%clk 00:00:05]} {[%emt 00:00:04]} 38. Nf6+ {[%clk 00:00:06]} {[%emt
00:00:02]} Kf7 {[%clk 00:00:05]} {[%emt 00:00:02]} 39. axb6 {[%clk 00:00:05]}
axb6 {[%clk 00:00:07]} 40. Be4 {[%clk 00:00:05]} {[%emt 00:00:03]} Ra2 {[%clk
00:00:08]} {[%emt 00:00:01]} 41. Bxd5 {[%clk 00:00:05]} {[%emt 00:00:02]} Nxd5
{[%clk 00:00:08]} {[%emt 00:00:01]} 42. Rc1 {[%clk 00:00:05]} {[%emt 00:00:01]}
Rxb2 {[%clk 00:00:07]} {[%emt 00:00:04]} 43. Rxc6 {[%clk 00:00:06]} Rb1+ {[%clk
00:00:08]} 44. Kh2 {[%clk 00:00:07]} Nxf6 {[%clk 00:00:08]} {[%emt 00:00:02]}
45. Rc7+ {[%clk 00:00:08]} {[%emt 00:00:02]} Kg6 {[%clk 00:00:09]} {[%emt
00:00:01]} 46. Rxg7+ {[%clk 00:00:08]} {[%emt 00:00:01]} Kxg7 {[%clk 00:00:09]}
{[%emt 00:00:03]} 47. exf6+ {[%clk 00:00:08]} {[%emt 00:00:02]} Kxf6 {[%clk
00:00:10]} 48. Rd3 {[%clk 00:00:08]} {[%emt 00:00:02]} Rb5 {[%clk 00:00:08]}
{[%emt 00:00:04]} 49. Kg3 {[%clk 00:00:08]} {[%emt 00:00:01]} Kf5 {[%clk
00:00:08]} {[%emt 00:00:02]} 50. f3 {[%clk 00:00:09]} Kf6 {[%clk 00:00:09]}
{[%emt 00:00:02]} 51. f4 {[%clk 00:00:10]} {[%emt 00:00:01]} Ke7 {[%clk
00:00:09]} {[%emt 00:00:02]} 52. fxg5 {[%clk 00:00:10]} {[%emt 00:00:02]} Rxg5+
{[%clk 00:00:10]} 53. Kf3 {[%clk 00:00:11]} Kd6 {[%clk 00:00:11]} 54. Rb3
{[%clk 00:00:12]} {[%emt 00:00:01]} b5 {[%clk 00:00:10]} {[%emt 00:00:04]} 55.
g4 {[%clk 00:00:13]} {[%emt 00:00:01]} Kc6 {[%clk 00:00:10]} {[%emt 00:00:01]}
56. Kf4 {[%clk 00:00:13]} Rd5 {[%clk 00:00:10]} {[%emt 00:00:03]} 57. Ke4
{[%clk 00:00:14]} Rg5 {[%clk 00:00:09]} {[%emt 00:00:03]} 58. Kf4 {[%clk
00:00:14]} {[%emt 00:00:02]} Rd5 {[%clk 00:00:08]} {[%emt 00:00:02]} 59. Rb4
{[%clk 00:00:15]} {[%emt 00:00:02]} Kb6 {[%clk 00:00:08]} {[%emt 00:00:02]} 60.
g5 {[%clk 00:00:16]} Ka5 {[%clk 00:00:09]} {[%emt 00:00:01]} 61. Rb1 {[%clk
00:00:16]} {[%emt 00:00:02]} Rxd4+ {[%clk 00:00:07]} {[%emt 00:00:04]} 62. Ke5
{[%clk 00:00:17]} Rg4 {[%clk 00:00:08]} {[%emt 00:00:01]} 63. Kf6 {[%clk
00:00:13]} {[%emt 00:00:06]} b4 {[%clk 00:00:09]} {[%emt 00:00:01]} 64. g6
{[%clk 00:00:14]} Ka4 {[%clk 00:00:09]} {[%emt 00:00:02]} 65. g7 {[%clk
00:00:13]} {[%emt 00:00:02]} e5 {[%clk 00:00:10]} {[%emt 00:00:02]} 66. Re1
{[%clk 00:00:11]} {[%emt 00:00:04]} b3 {[%clk 00:00:07]} {[%emt 00:00:05]} 67.
Rxe5 {[%clk 00:00:12]} {[%emt 00:00:01]} b2 {[%clk 00:00:05]} {[%emt 00:00:04]}
68. Re8 {[%clk 00:00:12]} {[%emt 00:00:02]} b1=Q {[%clk 00:03:02]} {[%emt
00:00:06]} 1-0

[Event "Blixt-SM 2025"]
[Site "Norrköping, Sweden"]
[Date "2025.09.26"]
[Round "1.2"]
[White "Smith, Axel"]
[Black "Dingertz, Erik"]
[Result "1/2-1/2"]
[TimeControl "3 min + 2 sec/move"]
[WhiteTitle "GM"]
[WhiteElo "2431"]
[BlackElo "2112"]

1. c4 {[%clk 00:03:03]} e6 {[%clk 00:03:02]} {[%emt 00:00:03]} 2. Nc3 {[%clk
00:03:03]} {[%emt 00:00:03]} d5 {[%clk 00:03:03]} {[%emt 00:00:01]} 3. d4
{[%clk 00:03:04]} Nf6 {[%clk 00:03:03]} {[%emt 00:00:02]} 4. cxd5 {[%clk
00:03:05]} exd5 {[%clk 00:03:04]} 5. Bg5 {[%clk 00:03:06]} Be7 {[%clk
00:03:05]} 6. e3 {[%clk 00:03:07]} {[%emt 00:00:02]} c6 {[%clk 00:03:05]}
{[%emt 00:00:03]} 7. Bd3 {[%clk 00:03:07]} {[%emt 00:00:02]} h6 {[%clk
00:03:03]} {[%emt 00:00:04]} 8. Bh4 {[%clk 00:03:08]} O-O {[%clk 00:03:03]}
{[%emt 00:00:02]} 9. Nge2 {[%clk 00:03:09]} Ne8 {[%clk 00:02:57]} {[%emt
00:00:08]} 10. Bg3 {[%clk 00:02:57]} {[%emt 00:00:13]} Nd7 {[%clk 00:02:52]}
{[%emt 00:00:07]} 11. O-O {[%clk 00:02:43]} {[%emt 00:00:17]} Ndf6 {[%clk
00:02:45]} {[%emt 00:00:09]} 12. f3 {[%clk 00:02:41]} {[%emt 00:00:04]} c5
{[%clk 00:02:07]} {[%emt 00:00:40]} 13. Qd2 {[%clk 00:02:25]} {[%emt 00:00:18]}
Nc7 {[%clk 00:01:05]} {[%emt 00:01:04]} 14. dxc5 {[%clk 00:01:31]} {[%emt
00:00:56]} Bxc5 {[%clk 00:01:00]} {[%emt 00:00:07]} 15. Na4 {[%clk 00:01:30]}
{[%emt 00:00:03]} Be7 {[%clk 00:00:45]} {[%emt 00:00:16]} 16. Nd4 {[%clk
00:01:24]} {[%emt 00:00:08]} Bd6 {[%clk 00:00:30]} {[%emt 00:00:17]} 17. Bxd6
{[%clk 00:01:18]} {[%emt 00:00:09]} Qxd6 {[%clk 00:00:31]} {[%emt 00:00:02]} 18.
Rac1 {[%clk 00:01:19]} Be6 {[%clk 00:00:12]} {[%emt 00:00:21]} 19. Rc2 {[%clk
00:00:46]} {[%emt 00:00:35]} Rac8 {[%clk 00:00:12]} {[%emt 00:00:02]} 20. Rfc1
{[%clk 00:00:47]} {[%emt 00:00:02]} b6 {[%clk 00:00:05]} {[%emt 00:00:08]} 21.
a3 {[%clk 00:00:46]} {[%emt 00:00:03]} Rfd8 {[%clk 00:00:03]} {[%emt 00:00:04]}
22. Nc3 {[%clk 00:00:47]} {[%emt 00:00:01]} Nce8 {[%clk 00:00:04]} {[%emt
00:00:01]} 23. Nce2 {[%clk 00:00:32]} {[%emt 00:00:17]} Qb8 {[%clk 00:00:03]}
{[%emt 00:00:03]} 24. Nf4 {[%clk 00:00:31]} {[%emt 00:00:02]} Nd6 {[%emt
00:00:04]} 25. Ndxe6 {[%clk 00:00:28]} {[%emt 00:00:04]} fxe6 {[%clk 00:00:03]}
26. Nxe6 {[%emt 00:00:01]} Re8 27. Rxc8 {[%clk 00:00:21]} Rxc8 {[%clk
00:00:06]} 28. Nd4 {[%clk 00:00:18]} {[%emt 00:00:06]} Nc4 {[%clk 00:00:06]}
{[%emt 00:00:02]} 29. Bxc4 {[%clk 00:00:18]} {[%emt 00:00:02]} dxc4 {[%clk
00:00:07]} {[%emt 00:00:01]} 30. Kf2 {[%clk 00:00:17]} {[%emt 00:00:02]} Qe5
{[%clk 00:00:08]} {[%emt 00:00:02]} 31. g3 {[%clk 00:00:15]} {[%emt 00:00:05]}
a5 {[%clk 00:00:08]} {[%emt 00:00:02]} 32. Qc3 {[%clk 00:00:12]} {[%emt
00:00:05]} Nd5 {[%clk 00:00:05]} {[%emt 00:00:04]} 33. Qd2 {[%clk 00:00:13]}
{[%emt 00:00:02]} Re8 {[%clk 00:00:04]} {[%emt 00:00:03]} 34. Re1 {[%clk
00:00:14]} {[%emt 00:00:01]} Qc7 {[%clk 00:00:03]} {[%emt 00:00:02]} 35. Nf5
{[%clk 00:00:11]} {[%emt 00:00:05]} Qc5 {[%clk 00:00:03]} {[%emt 00:00:02]} 36.
Qd4 {[%clk 00:00:11]} {[%emt 00:00:02]} Nf6 {[%clk 00:00:04]} {[%emt 00:00:02]}
37. Qxc5 {[%clk 00:00:11]} {[%emt 00:00:01]} bxc5 {[%clk 00:00:06]} 38. Rd1
{[%clk 00:00:10]} {[%emt 00:00:03]} Rb8 {[%clk 00:00:07]} 39. Rd2 {[%clk
00:00:12]} Rb3 {[%clk 00:00:04]} {[%emt 00:00:05]} 40. Nd6 {[%clk 00:00:12]}
{[%emt 00:00:02]} c3 {[%clk 00:00:05]} 41. bxc3 {[%clk 00:00:13]} Rxc3 {[%clk
00:00:06]} 42. a4 {[%clk 00:00:12]} {[%emt 00:00:02]} Ra3 {[%clk 00:00:07]} 43.
Nb7 {[%clk 00:00:12]} {[%emt 00:00:03]} Rxa4 {[%clk 00:00:07]} {[%emt
00:00:03]} 44. Nxc5 {[%clk 00:00:13]} Ra1 {[%clk 00:00:08]} 45. Nb3 {[%clk
00:00:14]} {[%emt 00:00:02]} Ra3 {[%clk 00:00:09]} {[%emt 00:00:01]} 46. Nd4
{[%clk 00:00:14]} {[%emt 00:00:01]} Nd5 {[%clk 00:00:07]} {[%emt 00:00:04]} 47.
e4 {[%clk 00:00:14]} {[%emt 00:00:01]} Nb4 {[%clk 00:00:07]} {[%emt 00:00:03]}
48. Kg2 {[%clk 00:00:12]} {[%emt 00:00:04]} a4 {[%clk 00:00:05]} {[%emt
00:00:04]} 49. e5 {[%clk 00:00:13]} Kf7 {[%clk 00:00:05]} {[%emt 00:00:01]} 50.
Nb5 {[%clk 00:00:13]} {[%emt 00:00:02]} Rb3 {[%clk 00:00:05]} {[%emt 00:00:02]}
51. f4 {[%clk 00:00:13]} {[%emt 00:00:03]} a3 {[%clk 00:00:05]} {[%emt
00:00:03]} 52. f5 {[%clk 00:00:14]} a2 {[%clk 00:00:06]} 53. e6+ {[%clk
00:00:13]} {[%emt 00:00:02]} Kf6 {[%clk 00:00:07]} 54. Rd1 {[%clk 00:00:12]}
{[%emt 00:00:03]} Nc6 {[%clk 00:00:06]} {[%emt 00:00:02]} 55. Ra1 {[%clk
00:00:11]} {[%emt 00:00:03]} Rxb5 {[%clk 00:00:07]} {[%emt 00:00:02]} 56. Rxa2
Rxf5 57. Re2 {[%clk 00:00:10]} {[%emt 00:00:02]} Ke7 {[%clk 00:00:08]} 58. Rc2
{[%clk 00:00:10]} {[%emt 00:00:02]} Nd4 {[%clk 00:00:09]} 59. Rc4 {[%clk
00:00:10]} {[%emt 00:00:02]} Nxe6 {[%emt 00:00:03]} 60. Ra4 Kf6 {[%clk
00:00:10]} {[%emt 00:00:01]} 61. Ra6 {[%clk 00:00:13]} g5 {[%clk 00:00:11]} 62.
Rb6 {[%emt 00:00:01]} Re5 {[%clk 00:00:11]} {[%emt 00:00:01]} 63. Ra6 {[%clk
00:00:15]} Kf5 {[%clk 00:00:12]} {[%emt 00:00:02]} 64. Kf3 {[%clk 00:00:15]}
{[%emt 00:00:02]} Nd4+ {[%clk 00:00:12]} {[%emt 00:00:02]} 65. Kg2 {[%clk
00:00:16]} h5 {[%clk 00:00:13]} 66. Ra4 {[%clk 00:00:16]} {[%emt 00:00:03]} Ne6
{[%clk 00:00:10]} {[%emt 00:00:05]} 67. Kf3 {[%clk 00:00:15]} {[%emt 00:00:03]}
g4+ {[%clk 00:00:11]} 68. Kf2 {[%clk 00:00:16]} Rb5 {[%clk 00:00:11]} {[%emt
00:00:01]} 69. Ra2 {[%clk 00:00:17]} {[%emt 00:00:01]} Nd4 {[%clk 00:00:12]}
{[%emt 00:00:02]} 70. Kg2 {[%clk 00:00:17]} {[%emt 00:00:02]} Rc5 {[%clk
00:00:13]} 71. Rf2+ {[%clk 00:00:07]} {[%emt 00:00:12]} Kg5 {[%clk 00:00:14]}
72. h4+ {[%clk 00:00:08]} Kg6 {[%clk 00:00:12]} {[%emt 00:00:03]} 73. Rf8
{[%clk 00:00:08]} {[%emt 00:00:03]} Rc2+ {[%clk 00:00:13]} 74. Kf1 {[%clk
00:00:08]} {[%emt 00:00:01]} Nf5 {[%clk 00:00:10]} {[%emt 00:00:06]} 75. Kg1
{[%clk 00:00:07]} {[%emt 00:00:03]} Nxg3 {[%clk 00:00:09]} {[%emt 00:00:02]} 76.
Rf6+ {[%clk 00:00:07]} {[%emt 00:00:03]} Kg7 {[%clk 00:00:05]} {[%emt
00:00:06]} 77. Rf7+ {[%clk 00:00:08]} Kg8 {[%clk 00:00:06]} {[%emt 00:00:01]}
78. Rf8+ {[%clk 00:00:10]} Kxf8 {[%clk 00:00:07]} 1/2-1/2